Workbook

Sheet Población
A1: Ubigeo | B1: Provincia_distrito | C1: Año2020 | D1: Año2021 | E1: Año2022 | F1: Año2023 | G1: Año2024 | H1: Año2025
A2: 060000 | B2: Cajamarca | C2: =SUM(C3,C16,C21,C34,C54,C63,C79,C83,C96,C104,C112,C126,C131) -> 1 453 711 | D2: =SUM(D3,D16,D21,D34,D54,D63,D79,D83,D96,D104,D112,D126,D131) -> 1 455 245 | E2: =SUM(E3,E16,E21,E34,E54,E63,E79,E83,E96,E104,E112,E126,E131) -> 1 454 217 | F2: =SUM(F3,F16,F21,F34,F54,F63,F79,F83,F96,F104,F112,F126,F131) -> 1 451 436 | G2: =SUM(G3,G16,G21,G34,G54,G63,G79,G83,G96,G104,G112,G126,G131) -> 1 447 707 | H2: 1 470 910
A3: 060100 | B3: Cajamarca | C3: =SUM(C4:C15) -> 388 170 | D3: =SUM(D4:D15) -> 390 645 | E3: =SUM(E4:E15) -> 392 571 | F3: =SUM(F4:F15) -> 394 113 | G3: =SUM(G4:G15) -> 395 441 | H3: =H4-H5-H6-H7-H8-H9-H10-H11-H12-H13-H14-H15 -> 142 648
A4: 060101 | B4: Cajamarca | C4: 245 137 | D4: 247 044 | E4: 248 596 | F4: 249 898 | G4: 251 058 | H4: 276 910
A5: 060102 | B5: Asunción | C5: 7 896 | D5: 7 632 | E5: 7 359 | F5: 7 083 | G5: 6 805 | H5: 7 086
A6: 060103 | B6: Chetilla | C6: 3 863 | D6: 3 847 | E6: 3 827 | F6: 3 803 | G6: 3 778 | H6: 3 440
A7: 060104 | B7: Cospán | C7: 7 159 | D7: 7 117 | E7: 7 069 | F7: 7 018 | G7: 6 966 | H7: 6 337
A8: 060105 | B8: Encañada | C8: 20 052 | D8: 19 735 | E8: 19 393 | F8: 19 036 | G8: 18 673 | H8: 17 129
A9: 060106 | B9: Jesús | C9: 16 666 | D9: 16 751 | E9: 16 813 | F9: 16 858 | G9: 16 893 | H9: 15 544
A10: 060107 | B10: Llacanora | C10: 6 657 | D10: 6 695 | E10: 6 723 | F10: 6 745 | G10: 6 763 | H10: 6 202
A11: 060108 | B11: Los Baños del Inca | C11: 53 298 | D11: 54 396 | E11: 55 412 | F11: 56 364 | G11: 57 278 | H11: 53 004
A12: 060109 | B12: Magdalena | C12: 8 809 | D12: 8 770 | E12: 8 722 | F12: 8 668 | G12: 8 611 | H12: 7 842
A13: 060110 | B13: Matara | C13: 3 793 | D13: 3 784 | E13: 3 766 | F13: 3 748 | G13: 3 728 | H13: 3 370
A14: 060111 | B14: Namora | C14: 10 308 | D14: 10 364 | E14: 10 406 | F14: 10 437 | G14: 10 463 | H14: 10 296
A15: 060112 | B15: San Juan | C15: 4 532 | D15: 4 510 | E15: 4 485 | F15: 4 455 | G15: 4 425 | H15: 4 012
A16: 060200 | B16: Cajabamba | C16: =SUM(C17:C20) -> 83 167 | D16: =SUM(D17:D20) -> 83 516 | E16: =SUM(E17:E20) -> 83 747 | F16: =SUM(F17:F20) -> 83 896 | G16: =SUM(G17:G20) -> 83 998 | H16: =H17+H18+H19+H20 -> 82 665
A17: 60201 | B17: Cajabamba | C17: 34 231 | D17: 34 538 | E17: 34 762 | F17: 34 929 | G17: 35 063 | H17: 34 374
A18: 60202 | B18: Cachachi | C18: 25 575 | D18: 25 589 | E18: 25 599 | F18: 25 606 | G18: 25 611 | H18: 25 230
A19: 060203 | B19: Condebamba | C19: 15 319 | D19: 15 434 | E19: 15 519 | F19: 15 583 | G19: 15 637 | H19: 14 465
A20: 060204 | B20: Sitacocha | C20: 8 042 | D20: 7 955 | E20: 7 867 | F20: 7 778 | G20: 7 687 | H20: 8 596
A21: 060300 | B21: Celendín | C21: =SUM(C22:C33) -> 83 916 | D21: =SUM(D22:D33) -> 83 575 | E21: =SUM(E22:E33) -> 82 965 | F21: =SUM(F22:F33) -> 82 172 | G21: =SUM(G22:G33) -> 81 283 | H21: =H22+H23+H24+H25+H26+H27+H28+H29+H30+H31+H32+H33 -> 80 193
A22: 060301 | B22: Celendín | C22: 29 097 | D22: 29 442 | E22: 29 695 | F22: 29 886 | G22: 30 049 | H22: 28 576
A23: 060302 | B23: Chumuch | C23: 2 699 | D23: 2 667 | E23: 2 626 | F23: 2 580 | G23: 2 531 | H23: 2 486
A24: 060303 | B24: Cortegana | C24: 7 343 | D24: 7 282 | E24: 7 197 | F24: 7 095 | G24: 6 984 | H24: 6 551
A25: 060304 | B25: Huasmín | C25: 10 885 | D25: 10 703 | E25: 10 485 | F25: 10 241 | G25: 9 982 | H25: 10 136
A26: 060305 | B26: Jorge Chávez | C26: 461 | D26: 455 | E26: 447 | F26: 438 | G26: 429 | H26: 458
A27: 060306 | B27: José Gálvez | C27: 2 751 | D27: 2 740 | E27: 2 720 | F27: 2 693 | G27: 2 662 | H27: 2 431
A28: 060307 | B28: Miguel Iglesias | C28: 3 922 | D28: 3 853 | E28: 3 771 | F28: 3 681 | G28: 3 586 | H28: 3 846
A29: 060308 | B29: Oxamarca | C29: 5 824 | D29: 5 776 | E29: 5 710 | F29: 5 632 | G29: 5 548 | H29: 6 209
A30: 060309 | B30: Sorochuco | C30: 7 514 | D30: 7 348 | E30: 7 158 | F30: 6 953 | G30: 6 738 | H30: 7 366
A31: 060310 | B31: Sucre | C31: 5 455 | D31: 5 419 | E31: 5 364 | F31: 5 296 | G31: 5 220 | H31: 4 901
A32: 060311 | B32: Utco | C32: 1 081 | D32: 1 067 | E32: 1 052 | F32: 1 036 | G32: 1 021 | H32: 1 095
A33: 060312 | B33: La Libertad de Pallán | C33: 6 884 | D33: 6 823 | E33: 6 740 | F33: 6 641 | G33: 6 533 | H33: 6 138
A34: 060400 | B34: Chota | C34: =SUM(C35:C50,C51:C53) -> 151 714 | D34: =SUM(D35:D50,D51:D53) -> 151 243 | E34: =SUM(E35:E50,E51:E53) -> 150 552 | F34: =SUM(F35:F50,F51:F53) -> 149 710 | G34: =SUM(G35:G50,G51:G53) -> 148 785 | H34: =H35+H36+H37+H38++H39+H40+H41+H42+H43+H44+H45+H46+H47+H48+H49+H50+H51+H52+H53 -> 143 900
A35: 060401 | B35: Chota | C35: 51 231 | D35: 51 686 | E35: 52 061 | F35: 52 378 | G35: 52 658 | H35: 50 822
A36: 060402 | B36: Anguía | C36: 3 216 | D36: 3 147 | E36: 3 074 | F36: 2 998 | G36: 2 922 | H36: 2 742
A37: 060403 | B37: Chadín | C37: 3 632 | D37: 3 600 | E37: 3 563 | F37: 3 523 | G37: 3 481 | H37: 3 313
A38: 060404 | B38: Chiguirip | C38: 3 628 | D38: 3 558 | E38: 3 483 | F38: 3 405 | G38: 3 325 | H38: 3 132
A39: 060405 | B39: Chimbán | C39: 2 201 | D39: 2 130 | E39: 2 056 | F39: 1 981 | G39: 1 906 | H39: 1 933
A40: 060406 | B40: Choropampa | C40: 2 311 | D40: 2 248 | E40: 2 182 | F40: 2 114 | G40: 2 046 | H40: 2 431
A41: 060407 | B41: Cochabamba | C41: 5 832 | D41: 5 774 | E41: 5 708 | F41: 5 637 | G41: 5 564 | H41: 5 195
A42: 060408 | B42: Conchán | C42: 5 944 | D42: 5 911 | E42: 5 869 | F42: 5 821 | G42: 5 770 | H42: 5 871
A43: 060409 | B43: Huambos | C43: 8 584 | D43: 8 522 | E43: 8 448 | F43: 8 366 | G43: 8 280 | H43: 7 682
A44: 060410 | B44: Lajas | C44: 11 586 | D44: 11 509 | E44: 11 415 | F44: 11 310 | G44: 11 200 | H44: 10 501
A45: 060411 | B45: Llama | C45: 7 385 | D45: 7 337 | E45: 7 278 | F45: 7 213 | G45: 7 143 | H45: 7 160
A46: 060412 | B46: Miracosta | C46: 3 300 | D46: 3 272 | E46: 3 239 | F46: 3 203 | G46: 3 165 | H46: 2 902
A47: 060413 | B47: Paccha | C47: 4 621 | D47: 4 584 | E47: 4 540 | F47: 4 492 | G47: 4 442 | H47: 4 114
A48: 060414 | B48: Pión | C48: 1 222 | D48: 1 197 | E48: 1 171 | F48: 1 144 | G48: 1 116 | H48: 1 101
A49: 060415 | B49: Querocoto | C49: 8 826 | D49: 8 803 | E49: 8 768 | F49: 8 723 | G49: 8 674 | H49: 8 585
A50: 060416 | B50: San Juan de Licupis | C50: 977 | D50: 968 | E50: 958 | F50: 947 | G50: 935 | H50: 850
A51: 060417 | B51: Tacabamba | C51: 16 668 | D51: 16 513 | E51: 16 334 | F51: 16 140 | G51: 15 938 | H51: 16 044
A52: 060418 | B52: Tocmoche | C52: 880 | D52: 872 | E52: 864 | F52: 855 | G52: 846 | H52: 730
A53: 060419 | B53: Chalamarca | C53: 9 670 | D53: 9 612 | E53: 9 541 | F53: 9 460 | G53: 9 374 | H53: 8 792
A54: 060500 | B54: Contumazá | C54: =SUM(C55:C62) -> 29 357 | D54: =SUM(D55:D62) -> 29 208 | E54: =SUM(E55:E62) -> 28 964 | F54: =SUM(F55:F62) -> 28 658 | G54: =SUM(G55:G62) -> 28 319 | H54: =H55+H56+H57+H58+H59+H60+H61+H62 -> 27 947
A55: 060501 | B55: Contumazá | C55: 8 061 | D55: 8 017 | E55: 7 945 | F55: 7 855 | G55: 7 756 | H55: 8 484
A56: 060502 | B56: Chilete | C56: 2 752 | D56: 2 721 | E56: 2 669 | F56: 2 604 | G56: 2 531 | H56: 2 521
A57: 060503 | B57: Cupisnique | C57: 1 402 | D57: 1 389 | E57: 1 369 | F57: 1 343 | G57: 1 314 | H57: 1 402
A58: 060504 | B58: Guzmango | C58: 2 845 | D58: 2 842 | E58: 2 835 | F58: 2 828 | G58: 2 819 | H58: 2 585
A59: 060505 | B59: San Benito | C59: 3 607 | D59: 3 608 | E59: 3 612 | F59: 3 617 | G59: 3 622 | H59: 3 391
A60: 060506 | B60: Santa Cruz de Toledo | C60: 1 047 | D60: 1 040 | E60: 1 030 | F60: 1 017 | G60: 1 002 | H60: 934
A61: 060507 | B61: Tantarica | C61: 2 650 | D61: 2 651 | E61: 2 653 | F61: 2 655 | G61: 2 659 | H61: 2 365
A62: 060508 | B62: Yonán | C62: 6 993 | D62: 6 940 | E62: 6 851 | F62: 6 739 | G62: 6 616 | H62: 6 265
A63: 060600 | B63: Cutervo | C63: =SUM(C64:C78) -> 123 948 | D63: =SUM(D64:D78) -> 123 361 | E63: =SUM(E64:E78) -> 122 594 | F63: =SUM(F64:F78) -> 121 702 | G63: =SUM(G64:G78) -> 120 743 | H63: =H64+H65+H66+H67+H68+H69+H70+H71+H72+H73+H74+H75+H76+H77+H78 -> 145 731
A64: 060601 | B64: Cutervo | C64: 51 272 | D64: 51 313 | E64: 51 275 | F64: 51 182 | G64: 51 053 | H64: 63 249
A65: 060602 | B65: Callayuc | C65: 9 627 | D65: 9 598 | E65: 9 554 | F65: 9 501 | G65: 9 442 | H65: 11 063
A66: 060603 | B66: Choros | C66: 3 286 | D66: 3 277 | E66: 3 262 | F66: 3 246 | G66: 3 226 | H66: 3 436
A67: 060604 | B67: Cujillo | C67: 2 569 | D67: 2 552 | E67: 2 532 | F67: 2 509 | G67: 2 485 | H67: 2 692
A68: 060605 | B68: La Ramada | C68: 3 977 | D68: 3 940 | E68: 3 897 | F68: 3 849 | G68: 3 800 | H68: 4 390
A69: 060606 | B69: Pimpingos | C69: 5 121 | D69: 5 063 | E69: 4 998 | F69: 4 927 | G69: 4 856 | H69: 5 943
A70: 060607 | B70: Querocotillo | C70: 13 416 | D70: 13 241 | E70: 13 051 | F70: 12 849 | G70: 12 641 | H70: 15 753
A71: 060608 | B71: San Andrés de Cutervo | C71: 4 276 | D71: 4 219 | E71: 4 155 | F71: 4 087 | G71: 4 020 | H71: 4 912
A72: 060609 | B72: San Juan de Cutervo | C72: 1 856 | D72: 1 840 | E72: 1 822 | F72: 1 803 | G72: 1 782 | H72: 2 304
A73: 060610 | B73: San Luis de Lucma | C73: 2 999 | D73: 2 945 | E73: 2 888 | F73: 2 828 | G73: 2 768 | H73: 3 384
A74: 060611 | B74: Santa Cruz | C74: 2 671 | D74: 2 641 | E74: 2 608 | F74: 2 572 | G74: 2 534 | H74: 2 731
A75: 060612 | B75: Santo Dom.de la Capilla | C75: 5 015 | D75: 4 999 | E75: 4 974 | F75: 4 944 | G75: 4 912 | H75: 5 783
A76: 060613 | B76: Santo Tomás | C76: 7 603 | D76: 7 577 | E76: 7 541 | F76: 7 496 | G76: 7 446 | H76: 8 456
A77: 060614 | B77: Sócota | C77: 9 156 | D77: 9 072 | E77: 8 975 | F77: 8 869 | G77: 8 760 | H77: 10 348
A78: 060615 | B78: Toribio Casanova | C78: 1 104 | D78: 1 084 | E78: 1 062 | F78: 1 040 | G78: 1 018 | H78: 1 287
A79: 060700 | B79: Hualgayoc | C79: =SUM(C80:C82) -> 83 913 | D79: =SUM(D80:D82) -> 83 473 | E79: =SUM(E80:E82) -> 82 766 | F79: =SUM(F80:F82) -> 81 878 | G79: =SUM(G80:G82) -> 80 896 | H79: =H80+H81+H82 -> 77 316
A80: 060701 | B80: Bambamarca | C80: 64 702 | D80: 64 343 | E80: 63 780 | F80: 63 076 | G80: 62 299 | H80: 59 795
A81: 060702 | B81: Chugur | C81: 2 959 | D81: 2 917 | E81: 2 866 | F81: 2 809 | G81: 2 751 | H81: 2 529
A82: 060703 | B82: Hualgayoc | C82: 16 252 | D82: 16 213 | E82: 16 120 | F82: 15 993 | G82: 15 846 | H82: 14 992
A83: 060800 | B83: Jaén | C83: =SUM(C84:C95) -> 203 724 | D83: =SUM(D84:D95) -> 204 729 | E83: =SUM(E84:E95) -> 205 445 | F83: =SUM(F84:F95) -> 205 959 | G83: =SUM(G84:G95) -> 206 361 | H83: =H84+H85+H86+H87+H88+H89+H90+H91+H92+H93+H94+H95 -> 200 461
A84: 060801 | B84: Jaén | C84: 106 009 | D84: 107 039 | E84: 107 925 | F84: 108 709 | G84: 109 435 | H84: 104 017
A85: 060802 | B85: Bellavista | C85: 16 370 | D85: 16 428 | E85: 16 464 | F85: 16 484 | G85: 16 496 | H85: 15 344
A86: 060803 | B86: Chontali | C86: 10 391 | D86: 10 435 | E86: 10 464 | F86: 10 484 | G86: 10 499 | H86: 10 073
A87: 060804 | B87: Colasay | C87: 10 567 | D87: 10 498 | E87: 10 414 | F87: 10 321 | G87: 10 223 | H87: 10 203
A88: 060805 | B88: Huabal | C88: 8 989 | D88: 9 021 | E88: 9 041 | F88: 9 052 | G88: 9 059 | H88: 9 009
A89: 060806 | B89: Las Pirias | C89: 4 643 | D89: 4 660 | E89: 4 670 | F89: 4 676 | G89: 4 680 | H89: 5 019
A90: 060807 | B90: Pomahuaca | C90: 9 245 | D90: 9 278 | E90: 9 299 | F90: 9 311 | G90: 9 319 | H90: 9 781
A91: 060808 | B91: Pucará | C91: 6 850 | D91: 6 873 | E91: 6 888 | F91: 6 895 | G91: 6 899 | H91: 7 114
A92: 060809 | B92: Sallique | C92: 7 509 | D92: 7 509 | E92: 7 502 | F92: 7 490 | G92: 7 474 | H92: 7 415
A93: 060810 | B93: San Felipe | C93: 4 740 | D93: 4 662 | E93: 4 577 | F93: 4 490 | G93: 4 398 | H93: 4 625
A94: 060811 | B94: San José del Alto | C94: 8 050 | D94: 8 114 | E94: 8 151 | F94: 8 169 | G94: 8 177 | H94: 7 712
A95: 060812 | B95: Santa Rosa | C95: 10 361 | D95: 10 212 | E95: 10 050 | F95: 9 878 | G95: 9 702 | H95: 10 149
A96: 060900 | B96: San Ignacio | C96: =SUM(C97:C103) -> 145 770 | D96: =SUM(D97:D103) -> 146 477 | E96: =SUM(E97:E103) -> 146 978 | F96: =SUM(F97:F103) -> 147 334 | G96: =SUM(G97:G103) -> 147 610 | H96: =H97+H98+H99+H100+H101+H102+H103 -> 150 797
A97: 060901 | B97: San Ignacio | C97: 40 171 | D97: 40 710 | E97: 41 202 | F97: 41 664 | G97: 42 102 | H97: 38 991
A98: 060902 | B98: Chirinos | C98: 15 974 | D98: 16 121 | E98: 16 246 | F98: 16 354 | G98: 16 454 | H98: 16 714
A99: 060903 | B99: Huarango | C99: 18 607 | D99: 18 384 | E99: 18 131 | F99: 17 856 | G99: 17 563 | H99: 20 882
A100: 060904 | B100: La Coipa | C100: 21 229 | D100: 21 354 | E100: 21 446 | F100: 21 516 | G100: 21 573 | H100: 22 519
A101: 060905 | B101: Namballe | C101: 9 945 | D101: 9 885 | E101: 9 809 | F101: 9 719 | G101: 9 621 | H101: 11 540
A102: 060906 | B102: San José de Lourdes | C102: 19 890 | D102: 19 955 | E102: 19 989 | F102: 20 001 | G102: 20 013 | H102: 19 738
A103: 060907 | B103: Tabaconas | C103: 19 954 | D103: 20 068 | E103: 20 155 | F103: 20 224 | G103: 20 284 | H103: 20 413
A104: 061000 | B104: San Marcos | C104: =SUM(C105:C111) -> 51 678 | D104: =SUM(D105:D111) -> 51 882 | E104: =SUM(E105:E111) -> 52 012 | F104: =SUM(F105:F111) -> 52 090 | G104: =SUM(G105:G111) -> 52 141 | H104: =H105+H106+H107+H108+H109+H110+H111 -> 50 384
A105: 061001 | B105: Pedro Gálvez | C105: 21 685 | D105: 21 941 | E105: 22 165 | F105: 22 367 | G105: 22 545 | H105: 21 223
A106: 061002 | B106: Chancay | C106: 3 069 | D106: 3 058 | E106: 3 042 | F106: 3 023 | G106: 3 003 | H106: 2 775
A107: 061003 | B107: Eduardo Villanueva | C107: 3 039 | D107: 3 114 | E107: 3 186 | F107: 3 254 | G107: 3 323 | H107: 2 965
A108: 061004 | B108: Gregorio Pita | C108: 5 150 | D108: 5 035 | E108: 4 913 | F108: 4 791 | G108: 4 667 | H108: 4 347
A109: 061005 | B109: Ichocán | C109: 1 971 | D109: 1 961 | E109: 1 950 | F109: 1 935 | G109: 1 920 | H109: 1 756
A110: 061006 | B110: José Manuel Quiróz | C110: 3 627 | D110: 3 595 | E110: 3 558 | F110: 3 516 | G110: 3 473 | H110: 3 235
A111: 061007 | B111: José Sabogal | C111: 13 137 | D111: 13 178 | E111: 13 198 | F111: 13 204 | G111: 13 210 | H111: 14 083
A112: 061100 | B112: San Miguel | C112: =SUM(C113:C125) -> 47 114 | D112: =SUM(D113:D125) -> 46 468 | E112: =SUM(E113:E125) -> 45 681 | F112: =SUM(F113:F125) -> 44 805 | G112: =SUM(G113:G125) -> 43 889 | H112: =H113+H114+H115+H116+H117+H119+H120+H121+H118+H122+H123+H124+H125 -> 43 651
A113: 061101 | B113: San Miguel | C113: 14 036 | D113: 13 919 | E113: 13 767 | F113: 13 596 | G113: 13 414 | H113: 15 513
A114: 061102 | B114: Bolívar | C114: 1 310 | D114: 1 285 | E114: 1 252 | F114: 1 216 | G114: 1 178 | H114: 1 102
A115: 061103 | B115: Calquis | C115: 4 281 | D115: 4 273 | E115: 4 260 | F115: 4 245 | G115: 4 228 | H115: 3 970
A116: 061104 | B116: Catilluc | C116: 2 813 | D116: 2 772 | E116: 2 721 | F116: 2 664 | G116: 2 604 | H116: 2 448
A117: 061105 | B117: El Prado | C117: 1 657 | D117: 1 635 | E117: 1 608 | F117: 1 575 | G117: 1 543 | H117: 648
A118: 061106 | B118: La Florida | C118: 2 165 | D118: 2 138 | E118: 2 105 | F118: 2 066 | G118: 2 026 | H118: 1 870
A119: 061107 | B119: Llapa | C119: 4 563 | D119: 4 497 | E119: 4 414 | F119: 4 320 | G119: 4 221 | H119: 3 950
A120: 061108 | B120: Nanchoc | C120: 1 370 | D120: 1 368 | E120: 1 365 | F120: 1 361 | G120: 1 356 | H120: 1 244
A121: 061109 | B121: Niepos | C121: 3 276 | D121: 3 193 | E121: 3 089 | F121: 2 973 | G121: 2 851 | H121: 2 664
A122: 061110 | B122: San Gregorio | C122: 2 274 | D122: 2 257 | E122: 2 236 | F122: 2 211 | G122: 2 185 | H122: 1 962
A123: 061111 | B123: San Silvestre de Cochán | C123: 3 711 | D123: 3 643 | E123: 3 558 | F123: 3 463 | G123: 3 362 | H123: 3 268
A124: 061112 | B124: Tongod | C124: 2 530 | D124: 2 402 | E124: 2 274 | F124: 2 144 | G124: 2 014 | H124: 2 280
A125: 061113 | B125: Unión Agua Blanca | C125: 3 128 | D125: 3 086 | E125: 3 032 | F125: 2 971 | G125: 2 907 | H125: 2 732
A126: 061200 | B126: San Pablo | C126: =SUM(C127:C130) -> 22 638 | D126: =SUM(D127:D130) -> 22 449 | E126: =SUM(E127:E130) -> 22 225 | F126: =SUM(F127:F130) -> 21 981 | G126: =SUM(G127:G130) -> 21 722 | H126: =H127+H128+H129+H130 -> 22 811
A127: 061201 | B127: San Pablo | C127: 13 460 | D127: 13 372 | E127: 13 263 | F127: 13 142 | G127: 13 011 | H127: 13 408
A128: 061202 | B128: San Bernardino | C128: 4 578 | D128: 4 536 | E128: 4 487 | F128: 4 432 | G128: 4 375 | H128: 4 385
A129: 061203 | B129: San Luis | C129: 922 | D129: 886 | E129: 850 | F129: 815 | G129: 780 | H129: 1 124
A130: 061204 | B130: Tumbadén | C130: 3 678 | D130: 3 655 | E130: 3 625 | F130: 3 592 | G130: 3 556 | H130: 3 894
A131: 061300 | B131: Santa Cruz | C131: =SUM(C132:C142) -> 38 602 | D131: =SUM(D132:D142) -> 38 219 | E131: =SUM(E132:E142) -> 37 717 | F131: =SUM(F132:F142) -> 37 138 | G131: =SUM(G132:G142) -> 36 519 | H131: =H132+H133+H134+H135+H136+H137+H138+H139+H140+H141+H142 -> 33 695
A132: 061301 | B132: Santa Cruz | C132: 9 756 | D132: 9 715 | E132: 9 640 | F132: 9 546 | G132: 9 435 | H132: 8 182
A133: 061302 | B133: Andabamba | C133: 1 311 | D133: 1 280 | E133: 1 247 | F133: 1 211 | G133: 1 175 | H133: 1 104
A134: 061303 | B134: Catache | C134: 9 870 | D134: 9 891 | E134: 9 875 | F134: 9 838 | G134: 9 784 | H134: 9 175
A135: 061304 | B135: Chancaybaños | C135: 3 468 | D135: 3 432 | E135: 3 386 | F135: 3 330 | G135: 3 273 | H135: 3 056
A136: 061305 | B136: La Esperanza | C136: 2 351 | D136: 2 311 | E136: 2 264 | F136: 2 213 | G136: 2 161 | H136: 1 971
A137: 061306 | B137: Ninabamba | C137: 1 999 | D137: 1 933 | E137: 1 864 | F137: 1 792 | G137: 1 721 | H137: 1 715
A138: 061307 | B138: Pulán | C138: 3 887 | D138: 3 815 | E138: 3 731 | F138: 3 641 | G138: 3 549 | H138: 3 302
A139: 061308 | B139: Saucepampa | C139: 1 399 | D139: 1 357 | E139: 1 314 | F139: 1 268 | G139: 1 222 | H139: 1 176
A140: 061309 | B140: Sexi | C140: 437 | D140: 433 | E140: 426 | F140: 419 | G140: 412 | H140: 364
A141: 061310 | B141: Uticyacu | C141: 1 255 | D141: 1 226 | E141: 1 194 | F141: 1 160 | G141: 1 126 | H141: 1 035
A142: 061311 | B142: Yauyucán | C142: 2 869 | D142: 2 826 | E142: 2 776 | F142: 2 720 | G142: 2 661 | H142: 2 615
